[Event "Titled Tuesday Blitz October 11 Late 2022"]
[White "Rodriguez Santiago, Jaime"]
[Black "Zochowski, Kacper"]
[WhiteFideId "3100898"]
[BlackFideId "1125494"]
[WhiteElo "2025"]
[BlackElo "2292"]
[Result "0-1"]
[Round "02"]
[TimeControl "180+1"]
[Date "2022.10.12"]
[WhiteClock "0:00:19"]
[BlackClock "0:00:14"]

1. Nf3 {[%clk 0:03:00]}  d6 {[%clk 0:02:59]} 2. c4 {[%clk 0:03:00]}  e5 {[%clk 0:03:00]} 3. Nc3 {[%clk 0:02:54]}  Nf6 {[%clk 0:03:00]} 4. g3 {[%clk 0:02:54]}  Nbd7 {[%clk 0:03:00]} 5. Bg2 {[%clk 0:02:55]}  Be7 {[%clk 0:03:01]} 6. O-O {[%clk 0:02:50]}  O-O {[%clk 0:03:01]} 7. e3 {[%clk 0:02:49]}  c6 {[%clk 0:03:00]} 8. b3 {[%clk 0:02:44]}  Qc7 {[%clk 0:03:01]} 9. d4 {[%clk 0:02:43]}  Re8 {[%clk 0:03:01]} 10. dxe5 {[%clk 0:02:41]}  dxe5 {[%clk 0:03:02]} 11. Bb2 {[%clk 0:02:41]}  Nc5 {[%clk 0:02:56]} 12. Qe2 {[%clk 0:02:27]}  Bg4 {[%clk 0:02:55]} 13. h3 {[%clk 0:02:26]}  Bh5 {[%clk 0:02:54]} 14. g4 {[%clk 0:02:20]}  Bg6 {[%clk 0:02:55]} 15. Rfd1 {[%clk 0:02:19]}  Rad8 {[%clk 0:02:54]} 16. Nh4 {[%clk 0:01:43]}  Bd3 {[%clk 0:02:50]} 17. Qf3 {[%clk 0:01:34]}  e4 {[%clk 0:02:38]} 18. Qf5 {[%clk 0:01:34]}  g6 {[%clk 0:02:34]} 19. Qf4 {[%clk 0:01:32]}  Qxf4 {[%clk 0:02:27]} 20. exf4 {[%clk 0:01:33]}  Nxg4 {[%clk 0:02:24]} 21. Nxg6 {[%clk 0:01:29]}  fxg6 {[%clk 0:02:19]} 22. hxg4 {[%clk 0:01:29]}  Rf8 {[%clk 0:02:19]} 23. f5 {[%clk 0:01:06]}  gxf5 {[%clk 0:02:19]} 24. gxf5 {[%clk 0:01:06]}  Rxf5 {[%clk 0:02:18]} 25. b4 {[%clk 0:01:06]}  Ne6 {[%clk 0:02:03]} 26. Nxe4 {[%clk 0:01:06]}  Bxb4 {[%clk 0:01:56]} 27. c5 {[%clk 0:00:51]}  Bxc5 {[%clk 0:01:36]} 28. Nf6+ {[%clk 0:00:45]}  Kf8 {[%clk 0:01:20]} 29. Rd2 {[%clk 0:00:44]}  Bd4 {[%clk 0:00:58]} 30. Ba3+ {[%clk 0:00:38]}  Bc5 {[%clk 0:00:40]} 31. Bb2 {[%clk 0:00:36]}  Bc4 {[%clk 0:00:32]} 32. Rxd8+ {[%clk 0:00:35]}  Nxd8 {[%clk 0:00:33]} 33. Nxh7+ {[%clk 0:00:35]}  Ke7 {[%clk 0:00:32]} 34. Re1+ {[%clk 0:00:34]}  Ne6 {[%clk 0:00:32]} 35. Kh2 {[%clk 0:00:28]}  Rxf2 {[%clk 0:00:32]} 36. Be5 {[%clk 0:00:26]}  Bd5 {[%clk 0:00:30]} 37. Rg1 {[%clk 0:00:26]}  Rf5 {[%clk 0:00:24]} 38. Bxd5 {[%clk 0:00:21]}  Bxg1+ {[%clk 0:00:24]} 39. Kxg1 {[%clk 0:00:21]}  Rxe5 {[%clk 0:00:20]} 40. Bg2 {[%clk 0:00:20]}  Nf4 {[%clk 0:00:19]} 41. Bf3 {[%clk 0:00:19]}  Ne6 {[%clk 0:00:17]} 42. Kf2 {[%clk 0:00:19]}  Rf5 {[%clk 0:00:14]} 43. Ke3 {[%clk 0:00:19]}  Rf7 {[%clk 0:00:11]} 44. Ng5 {[%clk 0:00:16]}  Nxg5 {[%clk 0:00:11]} 45. Bg4 {[%clk 0:00:17]}  Ne6 {[%clk 0:00:11]} 46. Ke4 {[%clk 0:00:17]}  Kd6 {[%clk 0:00:11]} 47. Be2 {[%clk 0:00:17]}  Rf4+ {[%clk 0:00:12]} 48. Kd3 {[%clk 0:00:18]}  Ra4 {[%clk 0:00:12]} 49. Kc2 {[%clk 0:00:19]}  Rxa2+ {[%clk 0:00:13]} 50. Kc3 {[%clk 0:00:19]}  Rxe2 {[%clk 0:00:14]} 0-1


[Site "https://www.chess.com"]

[Event "Titled Tuesday Blitz October 11 Late 2022"]
[White "Romero Ruscalleda, Josep"]
[Black "Al Hosani, Omran"]
[WhiteFideId "2231859"]
[BlackFideId "9308733"]
[WhiteElo "2388"]
[BlackElo "2167"]
[Result "0-1"]
[Round "02"]
[TimeControl "180+1"]
[Date "2022.10.12"]
[WhiteClock "0:00:01"]
[BlackClock "0:01:04"]

1. e4 {[%clk 0:03:00]}  c5 {[%clk 0:02:59]} 2. c3 {[%clk 0:03:00]}  Nc6 {[%clk 0:02:57]} 3. d4 {[%clk 0:03:00]}  cxd4 {[%clk 0:02:58]} 4. cxd4 {[%clk 0:03:00]}  d5 {[%clk 0:02:58]} 5. Nc3 {[%clk 0:03:01]}  dxe4 {[%clk 0:02:58]} 6. d5 {[%clk 0:03:01]}  Ne5 {[%clk 0:02:58]} 7. Qd4 {[%clk 0:03:01]}  f6 {[%clk 0:02:58]} 8. Qxe4 {[%clk 0:02:54]}  e6 {[%clk 0:02:57]} 9. Bb5+ {[%clk 0:02:50]}  Kf7 {[%clk 0:02:58]} 10. f4 {[%clk 0:02:45]}  exd5 {[%clk 0:02:52]} 11. Nxd5 {[%clk 0:02:29]}  Qa5+ {[%clk 0:02:38]} 12. Nc3 {[%clk 0:02:26]}  Bb4 {[%clk 0:02:36]} 13. Qd5+ {[%clk 0:02:07]}  Be6 {[%clk 0:02:34]} 14. Qxb7+ {[%clk 0:02:07]}  Ne7 {[%clk 0:02:31]} 15. Bd2 {[%clk 0:01:50]}  Rab8 {[%clk 0:02:27]} 16. Qa6 {[%clk 0:01:48]}  Rxb5 {[%clk 0:02:22]} 17. Qxb5 {[%clk 0:01:42]}  Bc4 {[%clk 0:02:06]} 18. Qxa5 {[%clk 0:01:28]}  Nd3+ {[%clk 0:02:06]} 19. Kd1 {[%clk 0:01:29]}  Bxa5 {[%clk 0:02:00]} 20. Nf3 {[%clk 0:01:16]}  Nf2+ {[%clk 0:01:56]} 21. Kc2 {[%clk 0:01:16]}  Bd3+ {[%clk 0:01:56]} 22. Kc1 {[%clk 0:01:11]}  Nxh1 {[%clk 0:01:55]} 23. Be3 {[%clk 0:00:58]}  Nf5 {[%clk 0:01:53]} 24. Bxa7 {[%clk 0:00:54]}  Bf1 {[%clk 0:01:53]} 25. g4 {[%clk 0:00:44]}  Ra8 {[%clk 0:01:45]} 26. Bc5 {[%clk 0:00:38]}  Bxc3 {[%clk 0:01:34]} 27. bxc3 {[%clk 0:00:37]}  Rc8 {[%clk 0:01:35]} 28. Bb4 {[%clk 0:00:28]}  Be2 {[%clk 0:01:34]} 29. gxf5 {[%clk 0:00:16]}  Bxf3 {[%clk 0:01:34]} 30. Kd2 {[%clk 0:00:11]}  Re8 {[%clk 0:01:32]} 31. a4 {[%clk 0:00:09]}  Nf2 {[%clk 0:01:31]} 32. a5 {[%clk 0:00:08]}  Ne4+ {[%clk 0:01:29]} 33. Kd3 {[%clk 0:00:08]}  Bg4 {[%clk 0:01:19]} 34. a6 {[%clk 0:00:07]}  Bxf5 {[%clk 0:01:19]} 35. a7 {[%clk 0:00:06]}  Nf2+ {[%clk 0:01:11]} 36. Kd4 {[%clk 0:00:05]}  Be4 {[%clk 0:01:07]} 37. Bd6 {[%clk 0:00:05]}  Ba8 {[%clk 0:01:07]} 38. Ra5 {[%clk 0:00:01]}  Rd8 {[%clk 0:01:04]} 0-1


[Site "https://www.chess.com"]

[Event "Titled Tuesday Blitz October 11 Late 2022"]
[White "Rosenberg, Evan S"]
[Black "Hnydiuk, Aleksander"]
[WhiteFideId "2019299"]
[BlackFideId "1109057"]
[WhiteElo "2360"]
[BlackElo "2374"]
[Result "0-1"]
[Round "02"]
[TimeControl "180+1"]
[Date "2022.10.12"]
[WhiteClock "0:00:02"]
[BlackClock "0:00:13"]

1. Nf3 {[%clk 0:03:00]}  Nf6 {[%clk 0:02:58]} 2. c4 {[%clk 0:03:00]}  e6 {[%clk 0:02:57]} 3. Nc3 {[%clk 0:02:59]}  c5 {[%clk 0:02:52]} 4. g3 {[%clk 0:02:58]}  b6 {[%clk 0:02:52]} 5. Bg2 {[%clk 0:02:58]}  Bb7 {[%clk 0:02:52]} 6. O-O {[%clk 0:02:53]}  Be7 {[%clk 0:02:52]} 7. d3 {[%clk 0:02:53]}  O-O {[%clk 0:02:51]} 8. e4 {[%clk 0:02:53]}  Nc6 {[%clk 0:02:46]} 9. a3 {[%clk 0:02:49]}  d6 {[%clk 0:02:45]} 10. Rb1 {[%clk 0:02:48]}  a5 {[%clk 0:02:43]} 11. h3 {[%clk 0:02:43]}  Nd7 {[%clk 0:02:43]} 12. Be3 {[%clk 0:02:30]}  Bf6 {[%clk 0:02:42]} 13. Nb5 {[%clk 0:02:20]}  Nde5 {[%clk 0:02:40]} 14. Nxe5 {[%clk 0:02:17]}  Bxe5 {[%clk 0:02:27]} 15. f4 {[%clk 0:02:15]}  Bf6 {[%clk 0:02:27]} 16. d4 {[%clk 0:02:02]}  cxd4 {[%clk 0:02:25]} 17. Nxd4 {[%clk 0:02:02]}  Rc8 {[%clk 0:02:10]} 18. Nb5 {[%clk 0:01:50]}  d5 {[%clk 0:01:55]} 19. cxd5 {[%clk 0:01:36]}  exd5 {[%clk 0:01:56]} 20. exd5 {[%clk 0:01:36]}  Ne7 {[%clk 0:01:53]} 21. d6 {[%clk 0:01:27]}  Bxg2 {[%clk 0:01:54]} 22. Kxg2 {[%clk 0:01:28]}  Nf5 {[%clk 0:01:52]} 23. Bf2 {[%clk 0:01:23]}  Rc6 {[%clk 0:01:46]} 24. d7 {[%clk 0:01:18]}  Qa8 {[%clk 0:01:38]} 25. Kh2 {[%clk 0:01:17]}  Rd8 {[%clk 0:01:38]} 26. g4 {[%clk 0:01:15]}  Nd6 {[%clk 0:01:33]} 27. Nxd6 {[%clk 0:01:13]}  Rxd7 {[%clk 0:01:33]} 28. Qf3 {[%clk 0:00:46]}  Rdxd6 {[%clk 0:01:32]} 29. Rfd1 {[%clk 0:00:37]}  Qc8 {[%clk 0:01:25]} 30. Rxd6 {[%clk 0:00:36]}  Rxd6 {[%clk 0:01:25]} 31. b4 {[%clk 0:00:33]}  Rd2 {[%clk 0:01:17]} 32. Re1 {[%clk 0:00:30]}  g6 {[%clk 0:01:07]} 33. Re2 {[%clk 0:00:26]}  Rxe2 {[%clk 0:01:00]} 34. Qxe2 {[%clk 0:00:27]}  Qc6 {[%clk 0:00:52]} 35. b5 {[%clk 0:00:23]}  Qd6 {[%clk 0:00:49]} 36. Qe3 {[%clk 0:00:16]}  a4 {[%clk 0:00:43]} 37. Kg3 {[%clk 0:00:11]}  g5 {[%clk 0:00:42]} 38. Qf3 {[%clk 0:00:07]}  gxf4+ {[%clk 0:00:41]} 39. Kg2 {[%clk 0:00:08]}  Kg7 {[%clk 0:00:36]} 40. h4 {[%clk 0:00:08]}  Bb2 {[%clk 0:00:34]} 41. g5 {[%clk 0:00:05]}  Bxa3 {[%clk 0:00:34]} 42. h5 {[%clk 0:00:04]}  Bc5 {[%clk 0:00:27]} 43. h6+ {[%clk 0:00:04]}  Kg6 {[%clk 0:00:26]} 44. Qe4+ {[%clk 0:00:04]}  Kxg5 {[%clk 0:00:26]} 45. Qxh7 {[%clk 0:00:04]}  f3+ {[%clk 0:00:21]} 46. Kh3 {[%clk 0:00:01]}  Qe6+ {[%clk 0:00:17]} 47. Kh2 {[%clk 0:00:02]}  Bd6+ {[%clk 0:00:15]} 48. Bg3 {[%clk 0:00:02]}  Qe2+ {[%clk 0:00:13]} 0-1


[Site "https://www.chess.com"]

[Event "Titled Tuesday Blitz October 11 Late 2022"]
[White "Rustemov, Alexander"]
[Black "Bjelobrk, Igor"]
[WhiteFideId "4119002"]
[BlackFideId "4300726"]
[WhiteElo "2869"]
[BlackElo "2335"]
[Result "1-0"]
[Round "02"]
[TimeControl "180+1"]
[Date "2022.10.12"]
[WhiteClock "0:00:31"]
[BlackClock "0:00:04"]

1. d4 {[%clk 0:03:00]}  d5 {[%clk 0:02:53]} 2. c4 {[%clk 0:03:01]}  e6 {[%clk 0:02:50]} 3. Nc3 {[%clk 0:03:01]}  c5 {[%clk 0:02:49]} 4. cxd5 {[%clk 0:03:01]}  cxd4 {[%clk 0:02:49]} 5. Qxd4 {[%clk 0:03:00]}  Nc6 {[%clk 0:02:48]} 6. Qd1 {[%clk 0:03:01]}  exd5 {[%clk 0:02:47]} 7. Qxd5 {[%clk 0:03:01]}  Bd6 {[%clk 0:02:42]} 8. Nf3 {[%clk 0:03:01]}  Nf6 {[%clk 0:02:34]} 9. Qd1 {[%clk 0:03:01]}  O-O {[%clk 0:02:34]} 10. g3 {[%clk 0:03:01]}  Bb4 {[%clk 0:02:31]} 11. Qxd8 {[%clk 0:02:58]}  Rxd8 {[%clk 0:02:30]} 12. Bd2 {[%clk 0:02:56]}  Bg4 {[%clk 0:02:22]} 13. Bg2 {[%clk 0:02:56]}  Rac8 {[%clk 0:02:16]} 14. Rd1 {[%clk 0:02:49]}  Bxc3 {[%clk 0:01:54]} 15. Bxc3 {[%clk 0:02:41]}  Rxd1+ {[%clk 0:01:54]} 16. Kxd1 {[%clk 0:02:42]}  Ne4 {[%clk 0:01:54]} 17. Be1 {[%clk 0:02:35]}  Be6 {[%clk 0:01:27]} 18. b3 {[%clk 0:02:30]}  a5 {[%clk 0:01:22]} 19. e3 {[%clk 0:02:08]}  a4 {[%clk 0:01:17]} 20. Nd4 {[%clk 0:02:06]}  Nxd4 {[%clk 0:01:05]} 21. Bxe4 {[%clk 0:01:47]}  axb3 {[%clk 0:01:05]} 22. axb3 {[%clk 0:01:47]}  Bxb3+ {[%clk 0:01:04]} 23. Kd2 {[%clk 0:01:46]}  Nc6 {[%clk 0:00:37]} 24. f4 {[%clk 0:01:24]}  Rd8+ {[%clk 0:00:35]} 25. Ke2 {[%clk 0:01:23]}  Bd5 {[%clk 0:00:35]} 26. Bxd5 {[%clk 0:01:18]}  Rxd5 {[%clk 0:00:36]} 27. Bc3 {[%clk 0:01:18]}  f5 {[%clk 0:00:35]} 28. Rb1 {[%clk 0:01:17]}  b5 {[%clk 0:00:35]} 29. h3 {[%clk 0:01:15]}  Kf7 {[%clk 0:00:35]} 30. g4 {[%clk 0:01:14]}  g6 {[%clk 0:00:35]} 31. g5 {[%clk 0:01:08]}  b4 {[%clk 0:00:35]} 32. Bf6 {[%clk 0:01:03]}  Ke6 {[%clk 0:00:33]} 33. h4 {[%clk 0:01:03]}  Kd6 {[%clk 0:00:31]} 34. h5 {[%clk 0:01:01]}  gxh5 {[%clk 0:00:21]} 35. Rh1 {[%clk 0:01:00]}  Kc5 {[%clk 0:00:19]} 36. Rxh5 {[%clk 0:01:00]}  Rd7 {[%clk 0:00:20]} 37. Rh6 {[%clk 0:00:49]}  b3 {[%clk 0:00:19]} 38. Bh8 {[%clk 0:00:50]}  Nb4 {[%clk 0:00:13]} 39. Rf6 {[%clk 0:00:49]}  Nd3 {[%clk 0:00:12]} 40. Rxf5+ {[%clk 0:00:49]}  Kc4 {[%clk 0:00:13]} 41. Rf8 {[%clk 0:00:44]}  b2 {[%clk 0:00:12]} 42. Rb8 {[%clk 0:00:41]}  Re7 {[%clk 0:00:08]} 43. Kf3 {[%clk 0:00:35]}  Ne1+ {[%clk 0:00:04]} 44. Kg4 {[%clk 0:00:35]}  Nd3 {[%clk 0:00:04]} 45. Bxb2 {[%clk 0:00:33]}  Nxb2 {[%clk 0:00:03]} 46. Rxb2 {[%clk 0:00:33]}  Rxe3 {[%clk 0:00:04]} 47. Rb7 {[%clk 0:00:31]} 1-0


[Site "https://www.chess.com"]

[Event "Titled Tuesday Blitz October 11 Late 2022"]
[White "Rytenko, Vsevolod"]
[Black "Aarav Dengla"]
[WhiteFideId "14133040"]
[BlackFideId "45059756"]
[WhiteElo "2262"]
[BlackElo "2257"]
[Result "0-1"]
[Round "02"]
[TimeControl "180+1"]
[Date "2022.10.12"]
[WhiteClock "0:00:40"]
[BlackClock "0:00:08"]

1. e4 {[%clk 0:02:55]}  c5 {[%clk 0:01:54]} 2. Nf3 {[%clk 0:02:54]}  d6 {[%clk 0:01:54]} 3. d4 {[%clk 0:02:55]}  cxd4 {[%clk 0:01:54]} 4. Nxd4 {[%clk 0:02:55]}  Nf6 {[%clk 0:01:54]} 5. Nc3 {[%clk 0:02:56]}  a6 {[%clk 0:01:55]} 6. Rg1 {[%clk 0:02:54]}  e5 {[%clk 0:01:53]} 7. Nb3 {[%clk 0:02:55]}  Be6 {[%clk 0:01:53]} 8. g4 {[%clk 0:02:55]}  d5 {[%clk 0:01:52]} 9. g5 {[%clk 0:02:56]}  Nxe4 {[%clk 0:01:52]} 10. Nxe4 {[%clk 0:02:55]}  dxe4 {[%clk 0:01:53]} 11. Qxd8+ {[%clk 0:02:56]}  Kxd8 {[%clk 0:01:54]} 12. Be3 {[%clk 0:02:56]}  Nc6 {[%clk 0:01:52]} 13. O-O-O+ {[%clk 0:02:57]}  Kc7 {[%clk 0:01:52]} 14. Bg2 {[%clk 0:02:55]}  Bg4 {[%clk 0:01:52]} 15. Rd2 {[%clk 0:02:52]}  Bf3 {[%clk 0:01:50]} 16. Bxf3 {[%clk 0:02:50]}  exf3 {[%clk 0:01:51]} 17. Rgd1 {[%clk 0:02:51]}  Be7 {[%clk 0:01:23]} 18. Rd7+ {[%clk 0:02:50]}  Kc8 {[%clk 0:01:23]} 19. Na5 {[%clk 0:02:42]}  Rd8 {[%clk 0:01:12]} 20. Rxd8+ {[%clk 0:02:23]}  Bxd8 {[%clk 0:01:10]} 21. Nxc6 {[%clk 0:02:23]}  bxc6 {[%clk 0:01:11]} 22. h4 {[%clk 0:02:21]}  Be7 {[%clk 0:01:05]} 23. a4 {[%clk 0:02:04]}  Rb8 {[%clk 0:01:01]} 24. a5 {[%clk 0:02:03]}  Rb4 {[%clk 0:00:57]} 25. Rh1 {[%clk 0:01:57]}  Ra4 {[%clk 0:00:54]} 26. Kd2 {[%clk 0:01:57]}  Rxa5 {[%clk 0:00:53]} 27. Kd3 {[%clk 0:01:58]}  Ra4 {[%clk 0:00:50]} 28. b3 {[%clk 0:01:56]}  e4+ {[%clk 0:00:43]} 29. Kd2 {[%clk 0:01:56]}  Ra5 {[%clk 0:00:41]} 30. Kc3 {[%clk 0:01:51]}  f6 {[%clk 0:00:37]} 31. Rg1 {[%clk 0:01:45]}  Kd7 {[%clk 0:00:33]} 32. Kc4 {[%clk 0:01:38]}  Ke6 {[%clk 0:00:24]} 33. b4 {[%clk 0:01:35]}  Rb5 {[%clk 0:00:20]} 34. c3 {[%clk 0:01:35]}  a5 {[%clk 0:00:21]} 35. bxa5 {[%clk 0:01:31]}  Rxa5 {[%clk 0:00:22]} 36. Rg4 {[%clk 0:01:16]}  f5 {[%clk 0:00:17]} 37. Rg1 {[%clk 0:01:16]}  Bd6 {[%clk 0:00:18]} 38. g6 {[%clk 0:01:13]}  h6 {[%clk 0:00:17]} 39. Bxh6 {[%clk 0:01:11]}  Be5 {[%clk 0:00:16]} 40. Be3 {[%clk 0:01:08]}  Ra3 {[%clk 0:00:14]} 41. Bd4 {[%clk 0:01:06]}  Bxd4 {[%clk 0:00:15]} 42. Kxd4 {[%clk 0:01:07]}  Ra2 {[%clk 0:00:15]} 43. h5 {[%clk 0:01:05]}  Rxf2 {[%clk 0:00:10]} 44. h6 {[%clk 0:00:53]}  Rd2+ {[%clk 0:00:10]} 45. Ke3 {[%clk 0:00:53]}  Rd3+ {[%clk 0:00:10]} 46. Kf4 {[%clk 0:00:53]}  gxh6 {[%clk 0:00:09]} 47. g7 {[%clk 0:00:53]}  Rd8 {[%clk 0:00:10]} 48. Rg6+ {[%clk 0:00:44]}  Kf7 {[%clk 0:00:09]} 49. Kxf5 {[%clk 0:00:43]}  f2 {[%clk 0:00:07]} 50. Rf6+ {[%clk 0:00:43]}  Kxg7 {[%clk 0:00:08]} 51. Rg6+ {[%clk 0:00:40]}  Kh7 {[%clk 0:00:08]} 0-1


[Site "https://www.chess.com"]

[Event "Titled Tuesday Blitz October 11 Late 2022"]
[White "Sabar, Ethmane Daouda"]
[Black "Vega Gutierrez, Sabrina"]
[WhiteFideId "19600097"]
[BlackFideId "2219026"]
[WhiteElo "1950"]
[BlackElo "2261"]
[Result "0-1"]
[Round "02"]
[TimeControl "180+1"]
[Date "2022.10.12"]
[WhiteClock "0:00:28"]
[BlackClock "0:00:08"]

1. Nf3 {[%clk 0:02:52]}  d5 {[%clk 0:02:59]} 2. g3 {[%clk 0:02:53]}  c6 {[%clk 0:03:00]} 3. Bg2 {[%clk 0:02:53]}  Bg4 {[%clk 0:02:59]} 4. O-O {[%clk 0:02:52]}  Nd7 {[%clk 0:03:00]} 5. c4 {[%clk 0:02:52]}  e6 {[%clk 0:03:00]} 6. d4 {[%clk 0:02:51]}  Ngf6 {[%clk 0:02:59]} 7. b3 {[%clk 0:02:52]}  Bd6 {[%clk 0:02:59]} 8. Bb2 {[%clk 0:02:51]}  O-O {[%clk 0:02:58]} 9. Ne5 {[%clk 0:02:50]}  Bh5 {[%clk 0:02:55]} 10. Nd2 {[%clk 0:02:46]}  a5 {[%clk 0:02:53]} 11. a3 {[%clk 0:02:46]}  Qe7 {[%clk 0:02:51]} 12. Ndf3 {[%clk 0:02:43]}  Ne4 {[%clk 0:02:49]} 13. Nxd7 {[%clk 0:02:43]}  Qxd7 {[%clk 0:02:49]} 14. Ne5 {[%clk 0:02:44]}  Qe7 {[%clk 0:02:48]} 15. f3 {[%clk 0:02:42]}  Nf6 {[%clk 0:02:46]} 16. g4 {[%clk 0:02:34]}  Bg6 {[%clk 0:02:46]} 17. Qd2 {[%clk 0:02:28]}  c5 {[%clk 0:02:27]} 18. e3 {[%clk 0:02:26]}  a4 {[%clk 0:02:17]} 19. dxc5 {[%clk 0:02:20]}  Bxc5 {[%clk 0:01:50]} 20. b4 {[%clk 0:02:18]}  Ba7 {[%clk 0:01:47]} 21. c5 {[%clk 0:02:14]}  Nd7 {[%clk 0:01:46]} 22. Rac1 {[%clk 0:01:51]}  Nxe5 {[%clk 0:01:29]} 23. Bxe5 {[%clk 0:01:52]}  Bb8 {[%clk 0:01:30]} 24. Qd4 {[%clk 0:01:43]}  Bxe5 {[%clk 0:01:15]} 25. Qxe5 {[%clk 0:01:44]}  f6 {[%clk 0:01:15]} 26. Qd4 {[%clk 0:01:37]}  Rfd8 {[%clk 0:01:10]} 27. f4 {[%clk 0:01:37]}  h5 {[%clk 0:01:04]} 28. h3 {[%clk 0:01:33]}  hxg4 {[%clk 0:01:03]} 29. hxg4 {[%clk 0:01:33]}  Bf7 {[%clk 0:00:59]} 30. b5 {[%clk 0:01:25]}  e5 {[%clk 0:00:58]} 31. fxe5 {[%clk 0:01:22]}  fxe5 {[%clk 0:00:59]} 32. Qb4 {[%clk 0:01:16]}  Qg5 {[%clk 0:00:46]} 33. Rc3 {[%clk 0:01:05]}  d4 {[%clk 0:00:36]} 34. exd4 {[%clk 0:01:06]}  exd4 {[%clk 0:00:37]} 35. Rcf3 {[%clk 0:00:55]}  Bd5 {[%clk 0:00:36]} 36. Rf4 {[%clk 0:00:49]}  Bxg2 {[%clk 0:00:34]} 37. Kxg2 {[%clk 0:00:50]}  Qd5+ {[%clk 0:00:33]} 38. Kg3 {[%clk 0:00:49]}  Re8 {[%clk 0:00:29]} 39. Qxd4 {[%clk 0:00:45]}  Qb3+ {[%clk 0:00:28]} 40. R1f3 {[%clk 0:00:46]}  Qe6 {[%clk 0:00:21]} 41. Qd6 {[%clk 0:00:42]}  Qe1+ {[%clk 0:00:21]} 42. Kh3 {[%clk 0:00:39]}  Qh1+ {[%clk 0:00:13]} 43. Kg3 {[%clk 0:00:40]}  Qe1+ {[%clk 0:00:10]} 44. Kg2 {[%clk 0:00:36]}  Re2+ {[%clk 0:00:09]} 45. Rf2 {[%clk 0:00:36]}  Rxf2+ {[%clk 0:00:09]} 46. Rxf2 {[%clk 0:00:37]}  Qe4+ {[%clk 0:00:09]} 47. Kg3 {[%clk 0:00:33]}  Re8 {[%clk 0:00:07]} 48. Qf4 {[%clk 0:00:25]}  Qd3+ {[%clk 0:00:04]} 49. Rf3 {[%clk 0:00:25]}  Qd5 {[%clk 0:00:03]} 50. c6 {[%clk 0:00:24]}  bxc6 {[%clk 0:00:03]} 51. bxc6 {[%clk 0:00:24]}  Qxc6 {[%clk 0:00:04]} 52. Qf7+ {[%clk 0:00:24]}  Kh7 {[%clk 0:00:04]} 53. Qf5+ {[%clk 0:00:20]}  Kg8 {[%clk 0:00:04]} 54. Qf7+ {[%clk 0:00:20]}  Kh7 {[%clk 0:00:04]} 55. g5 {[%clk 0:00:21]}  Qd6+ {[%clk 0:00:03]} 56. Kg4 {[%clk 0:00:21]}  Re4+ {[%clk 0:00:03]} 57. Rf4 {[%clk 0:00:20]}  Qd1+ {[%clk 0:00:03]} 58. Kh4 {[%clk 0:00:17]}  Qh1+ {[%clk 0:00:02]} 59. Kg3 {[%clk 0:00:18]}  Qg1+ {[%clk 0:00:03]} 60. Kf3 {[%clk 0:00:18]}  Rxf4+ {[%clk 0:00:02]} 61. Qxf4 {[%clk 0:00:18]}  Qf1+ {[%clk 0:00:02]} 62. Ke4 {[%clk 0:00:19]}  Qe2+ {[%clk 0:00:02]} 63. Kf5 {[%clk 0:00:20]}  Qd3+ {[%clk 0:00:02]} 64. Ke5 {[%clk 0:00:20]}  Qb5+ {[%clk 0:00:02]} 65. Kd4 {[%clk 0:00:21]}  Qb6+ {[%clk 0:00:01]} 66. Kd5 {[%clk 0:00:21]}  Qb5+ {[%clk 0:00:02]} 67. Kd6 {[%clk 0:00:22]}  Qb6+ {[%clk 0:00:02]} 68. Ke7 {[%clk 0:00:22]}  Qb7+ {[%clk 0:00:02]} 69. Qc7 {[%clk 0:00:22]}  Qxc7+ {[%clk 0:00:02]} 70. Ke6 {[%clk 0:00:23]}  Qc5 {[%clk 0:00:03]} 71. g6+ {[%clk 0:00:24]}  Kxg6 {[%clk 0:00:03]} 72. Kd7 {[%clk 0:00:25]}  Qxa3 {[%clk 0:00:03]} 73. Kc8 {[%clk 0:00:26]}  Qb3 {[%clk 0:00:04]} 74. Kc7 {[%clk 0:00:26]}  a3 {[%clk 0:00:05]} 75. Kc6 {[%clk 0:00:27]}  a2 {[%clk 0:00:06]} 76. Kc5 {[%clk 0:00:27]}  a1=Q {[%clk 0:00:07]} 77. Kc6 {[%clk 0:00:28]}  Qc1+ {[%clk 0:00:08]} 0-1


[Site "https://www.chess.com"]

[Event "Titled Tuesday Blitz October 11 Late 2022"]
[White "Sarkar, Justin"]
[Black "Domingo Nunez, Ruben"]
[WhiteFideId "2010011"]
[BlackFideId "22245570"]
[WhiteElo "2250"]
[BlackElo "2406"]
[Result "0-1"]
[Round "02"]
[TimeControl "180+1"]
[Date "2022.10.12"]
[WhiteClock "0:00:01"]
[BlackClock "0:00:39"]

1. e4 {[%clk 0:02:56]}  g6 {[%clk 0:03:00]} 2. d4 {[%clk 0:02:53]}  Bg7 {[%clk 0:03:00]} 3. Nc3 {[%clk 0:02:53]}  c6 {[%clk 0:03:01]} 4. f4 {[%clk 0:02:30]}  d5 {[%clk 0:03:02]} 5. e5 {[%clk 0:02:30]}  Nh6 {[%clk 0:03:02]} 6. h3 {[%clk 0:02:24]}  f6 {[%clk 0:03:02]} 7. g4 {[%clk 0:02:04]}  O-O {[%clk 0:03:02]} 8. Bg2 {[%clk 0:01:50]}  fxe5 {[%clk 0:03:02]} 9. fxe5 {[%clk 0:01:39]}  e6 {[%clk 0:03:03]} 10. Nf3 {[%clk 0:01:33]}  c5 {[%clk 0:03:03]} 11. Ne2 {[%clk 0:01:19]}  Nc6 {[%clk 0:03:03]} 12. c3 {[%clk 0:01:17]}  cxd4 {[%clk 0:02:30]} 13. cxd4 {[%clk 0:01:15]}  Qb6 {[%clk 0:02:27]} 14. Bf4 {[%clk 0:00:42]}  Qxb2 {[%clk 0:02:13]} 15. O-O {[%clk 0:00:39]}  Qa3 {[%clk 0:02:11]} 16. Qd2 {[%clk 0:00:28]}  Nf7 {[%clk 0:02:10]} 17. Rab1 {[%clk 0:00:27]}  b6 {[%clk 0:02:10]} 18. Nc3 {[%clk 0:00:04]}  Ba6 {[%clk 0:02:09]} 19. Rfc1 {[%clk 0:00:03]}  Rac8 {[%clk 0:02:10]} 20. Nb5 {[%clk 0:00:02]}  Bxb5 {[%clk 0:02:06]} 21. Rxb5 {[%clk 0:00:02]}  Rc7 {[%clk 0:01:41]} 22. Rb3 {[%clk 0:00:01]}  Qa4 {[%clk 0:01:40]} 23. Rbc3 {[%clk 0:00:01]}  Rfc8 {[%clk 0:01:39]} 24. Qc2 {[%clk 0:00:01]}  Qb4 {[%clk 0:01:16]} 25. Be3 {[%clk 0:00:01]}  Qe7 {[%clk 0:01:09]} 26. Bf1 {[%clk 0:00:01]}  Bf8 {[%clk 0:00:39]} 27. Bd3 {[%clk 0:00:01]}  Nb4 {[%clk 0:00:39]} 0-1


[Site "https://www.chess.com"]